fUSD/lending_fUSD_20250104
["ID","MTS","AMOUNT","RATE_DAILY","PERIOD"]
[347637940,1736002233722,-500.0,9.999e-05,2]
[347637941,1736002233732,-500.0,9.999e-05,2]
[347637942,1736002233742,-500.0,9.999e-05,2]
[347637943,1736002233752,-500.0,9.999e-05,2]
[347637944,1736002233762,-500.0,9.999e-05,2]
[347637945,1736002233772,-500.0,9.999e-05,2]
[347637946,1736002233782,-500.0,9.999e-05,2]
[347637947,1736002233792,-765.92,9.999e-05,2]
[347637948,1736002233802,-500.0,9.999e-05,2]
[347637949,1736002233812,-500.0,9.999e-05,2]
[347637950,1736002233822,-645.73945477,9.999e-05,2]
[347637951,1736002233831,-500.0,9.999e-05,2]
[347637952,1736002233841,-500.0,9.999e-05,2]
[347637953,1736002233851,-500.0,9.999e-05,2]
[347637954,1736002233861,-159.2,9.999e-05,2]
[347637955,1736002233871,-500.0,9.999e-05,2]
[347637956,1736002233882,-500.0,9.999e-05,2]
[347637957,1736002233892,-500.0,9.999e-05,2]
[347637958,1736002233902,-500.0,9.999e-05,2]
[347637959,1736002233912,-500.0,9.999e-05,2]
[347637960,1736002233922,-500.0,9.999e-05,2]
[347637961,1736002233932,-500.0,9.999e-05,2]
[347637962,1736002233943,-325.06817342,9.999e-05,2]
[347637963,1736002233954,-500.0,9.999e-05,2]
[347637964,1736002233964,-500.0,9.999e-05,2]
[347637965,1736002233974,-500.0,9.999e-05,2]
[347637966,1736002233985,-292.56973611,9.999e-05,2]
[347637967,1736002233995,-500.0,9.999e-05,2]
[347637968,1736002234006,-764.0,0.0001,2]
[347637969,1736002234015,-15705.7396074,0.0001,2]
[347637970,1736002234029,-968.77134671,0.0001,2]
[347637971,1736002234050,-558.64076234,0.0001,2]
[347637972,1736002234062,-1032.80262214,0.0001,2]
[347637973,1736002234074,-526.74260338,0.0001,2]
[347637974,1736002234085,-345.7434,0.0001,2]
[347637975,1736002234097,-5128.4343372,0.0001,2]
[347637976,1736002234108,-800.0,0.0001,2]
[347637977,1736002234119,-19703.77677278,0.0001,2]
[347637988,1736002238247,-341.24596483,0.0001,2]
[347637989,1736002238259,-10453.75048581,0.0001,2]
[347637990,1736002238270,-531.06932274,0.0001,2]
[347637991,1736002238282,-478.31959918,0.0001,2]
[347637992,1736002238305,-13136.5,0.0001,2]
[347637993,1736002238378,-10129.63824951,0.0001,2]
[347637994,1736002238390,-10260.24879013,0.0001,2]
[347637995,1736002238402,-1660.47195762,0.0001,2]
[347637996,1736002238413,-8390.41828939,0.0001,2]
[347637997,1736002238425,-7140.49321205,0.0001,2]
[347637998,1736002238436,-470.39094375,0.0001,2]
[347637999,1736002238448,-50860.65705746,0.0001,2]
[347638000,1736002238474,-503.03113123,0.0001,2]
[347638001,1736002238486,-19029.68836344,0.0001,2]
[347638002,1736002238498,-6854.51125139,0.0001,2]
[347638003,1736002238511,-2654.23945515,0.0001,2]
[347638031,1736002240361,-679.0,0.0001,2]
[347638032,1736002240371,-3926.500027,0.0001,2]
[347638033,1736002240382,-297.4799979,0.0001,2]
[347638034,1736002240394,-557.838,0.0001,2]
[347638035,1736002240482,-3257.17626693,0.0001,2]
[347638036,1736002240494,-381.94106347,0.0001,2]
[347638037,1736002240506,-377.68024146,0.0001,2]
[347638038,1736002240517,-3300.0,0.0001,2]
[347638039,1736002240528,-7399.800004,0.0001,2]
[347638040,1736002240546,-498.60104467,0.0001,2]
[347638041,1736002240557,-3218.52114209,0.0001,2]
[347638042,1736002240571,-1805.0000005,0.0001,2]
[347638043,1736002240585,-312.3160075,0.0001,2]
[347638044,1736002240596,-347.23544999,0.0001,2]
[347638045,1736002240607,-317.98769101,0.0001,2]
[347638046,1736002240619,-2358.13076303,0.0001,2]
[347638047,1736002240716,-11073259.8634132,0.0001,2]
[347638301,1736002243374,-58864.2,0.0001,2]
[347638304,1736002243400,-7629.36114969,0.0001,2]
[347638307,1736002243415,-7381.18361,0.0001,2]
[347638317,1736002243504,-24912.06919026,0.0001,2]
[347638319,1736002243516,-9509.5,0.0001,2]
[347638610,1736002246479,-617.21339816,0.0001,2]
[347638612,1736002246492,-2259.33049327,0.0001,2]
[347638613,1736002246506,-1822.15,0.0001,2]
[347638625,1736002246695,-500.0,9.999e-05,2]
[347638627,1736002246704,-10846.79011653,0.0001,2]
[347638629,1736002246715,-19661.0041208,0.0001,2]
[347638859,1736002850730,568.07,8.219e-05,2]
[347638860,1736003431632,-209.97,8.805e-05,2]
[347638861,1736003431644,-1000.0,8.889e-05,2]
[347638862,1736003431655,-89.90485979,8.966e-05,2]
[347638863,1736003431668,-487.47514021,8.966e-05,2]
[347638864,1736003431679,-250.0,8.988e-05,2]
[347638865,1736003431693,-400.0,9e-05,3]
[347638866,1736003431706,-250.0,9.065e-05,2]
[347638867,1736003431718,-800.0,9.1e-05,3]
[347638868,1736003431729,-150.0,9.11e-05,2]
[347638869,1736003431742,-1018.8,9.2e-05,2]
[347638870,1736003431753,-1200.0,9.2e-05,3]
[347638871,1736003431765,-1284.15740731,9.3e-05,3]
[347638872,1736003431794,-315.84259269,9.3e-05,3]
[347638873,1736003431804,-168.01,9.316e-05,2]
[347638874,1736003431814,-150.0,9.32e-05,2]
[347638875,1736003431824,-2000.0,9.4e-05,3]
[347638876,1736003431834,-739.456,9.5e-05,2]
[347638877,1736003431844,-400.0,9.5e-05,3]
[347638878,1736003431854,-122.16140731,9.6e-05,3]
[347638879,1736003431866,-277.83859269,9.6e-05,3]
[347638880,1736003431876,-150.0,9.678e-05,2]
[347638881,1736003431885,-1956.82,9.678e-05,2]
[347638882,1736003431894,-436.69,9.678e-05,2]
[347638883,1736003431903,-400.0,9.7e-05,3]
[347638884,1736003431912,-400.0,9.8e-05,3]
[347638885,1736003431922,-265.4289,9.9e-05,2]
[347638886,1736003431931,-5156.2646,9.9e-05,2]
[347638887,1736003431940,-5000.0,9.9e-05,2]
[347638903,1736003432206,-600.0,9.9e-05,3]
[347638904,1736003432225,-272.4858583,9.917e-05,2]
[347638905,1736003432239,-151.771848,9.973e-05,2]
[347638907,1736003432249,-272.4858583,9.983e-05,2]
[347638909,1736003432258,-1623.883,9.995e-05,2]
[347638910,1736003432267,-161.705,9.995e-05,2]
[347638911,1736003432279,-500.0,9.999e-05,2]
[347638912,1736003432288,-519.72,9.999e-05,2]
[347638913,1736003432297,-500.0,9.999e-05,2]
[347638914,1736003432306,-500.0,9.999e-05,2]
[347638915,1736003432315,-500.0,9.999e-05,2]
[347638916,1736003432325,-500.0,9.999e-05,2]
[347638917,1736003432334,-522.61,9.999e-05,2]
[347638918,1736003432343,-500.0,9.999e-05,2]
[347638919,1736003432352,-500.0,9.999e-05,2]
[347638920,1736003432361,-500.0,9.999e-05,2]
[347638921,1736003432371,-904.05,9.999e-05,2]
[347638922,1736003432380,-84.19108862,9.999e-05,2]
[347638923,1736003432392,-557.37891138,9.999e-05,2]
[347638924,1736003432402,-500.0,9.999e-05,2]
[347638925,1736003432417,-500.0,9.999e-05,2]
[347638926,1736003432426,-500.0,9.999e-05,2]
[347638927,1736003432436,-500.0,9.999e-05,2]
[347638928,1736003432446,-500.0,9.999e-05,2]
[347638929,1736003432455,-734.0,9.999e-05,2]
[347638930,1736003432465,-500.0,9.999e-05,2]
[347638931,1736003432477,-500.0,9.999e-05,2]
[347638932,1736003432486,-500.0,9.999e-05,2]
[347638933,1736003432496,-500.0,9.999e-05,2]
[347638934,1736003432505,-500.0,9.999e-05,2]
[347638935,1736003432515,-412.52,9.999e-05,2]
[347638936,1736003432526,-500.0,9.999e-05,2]
[347638937,1736003432536,-500.0,9.999e-05,2]
[347638938,1736003432546,-500.0,9.999e-05,2]
[347638939,1736003432555,-500.0,9.999e-05,2]
[347638940,1736003432564,-500.0,9.999e-05,2]
[347638941,1736003432574,-500.0,9.999e-05,2]
[347638942,1736003432584,-500.0,9.999e-05,2]
[347638943,1736003432593,-500.0,9.999e-05,2]
[347638944,1736003432603,-500.0,9.999e-05,2]
[347638945,1736003432613,-500.0,9.999e-05,2]
[347638946,1736003432623,-271.61,9.999e-05,2]
[347638947,1736003432632,-500.0,9.999e-05,2]
[347638948,1736003432642,-500.0,9.999e-05,2]
[347638949,1736003432651,-500.0,9.999e-05,2]
[347638950,1736003432660,-500.0,9.999e-05,2]
[347638951,1736003432670,-317.35945365,9.999e-05,2]
[347638952,1736003432679,-500.0,9.999e-05,2]
[347638953,1736003432689,-500.0,9.999e-05,2]
[347638954,1736003432701,-777.24,9.999e-05,2]
[347638955,1736003432710,-500.0,9.999e-05,2]
[347638956,1736003432721,-612.0,0.0001,2]
[347638957,1736003432730,-1000.0,0.0001,2]
[347638958,1736003432740,-19899.18562815,0.0001,2]
[347638959,1736003432763,-1968.35705804,0.0001,2]
[347638966,1736003437605,-1000.0,9.9e-05,2]
[347638967,1736003437615,-9265.0082,0.0001,2]
[347638973,1736003438020,-500.0,9.999e-05,2]
[347638974,1736003438030,-877.49615752,0.0001,2]
[347638975,1736003438041,-12281.948,0.0001,2]
[347638976,1736003439664,-556.0,0.0001,2]
[347638977,1736003439674,-2859.29243995,0.0001,2]
[347638978,1736003439822,-1249.76973791,0.0001,2]
[347638979,1736003439835,-3390.66420414,0.0001,2]
[347638982,1736003442819,-5671.253295,0.0001,2]
[347638983,1736003442831,-4943.7832645,0.0001,2]
[347638984,1736003442843,-8788.38678707,0.0001,2]
[347638985,1736003445539,-12330.2581585,0.0001,2]
[347638986,1736003445552,-12202.68916995,0.0001,2]
[347638987,1736003445564,-30102.21203,0.0001,2]
[347638988,1736003445689,-1127.20424068,0.0001,2]
[347638989,1736003445739,-880.11382504,0.0001,2]
[347638990,1736003445867,-2820.87431498,0.0001,2]
[347638991,1736003520059,653.0,0.00015,60]
[347638992,1736003605363,-377.20115944,9.8e-05,2]
[347638993,1736003822632,1000.0,9.724e-05,2]
[347638994,1736003910076,1494.327,9.8e-05,2]
[347638995,1736003910395,164.422,9.8e-05,2]
[347638996,1736003959880,1000.0,9.8e-05,2]
[347638997,1736003964501,554.44,8.219e-05,2]
[347638998,1736004094657,150.0,0.0002,120]
[347638999,1736004107475,200.0,0.0002,120]
[347639000,1736004108650,-5000.0,9.9e-05,2]
[347639001,1736004108677,-729.3856,9.9e-05,2]
[347639002,1736004108704,-2284.7925,9.9e-05,2]
[347639003,1736004108731,-34946.1049,9.9e-05,2]
[347639004,1736004108758,-999.501,9.9e-05,2]
[347639005,1736004115062,800.0,0.0002,120]
[347639006,1736004123090,1000.0,0.0002,120]
[347639007,1736004138697,150.0,9.8e-05,2]
[347639008,1736004140866,708.515,9.5e-05,2]
[347639009,1736004155390,200.0,9.8e-05,2]
[347639010,1736004174146,1102.37753039,0.0002,120]
[347639011,1736004188850,287.0,0.0002,120]
[347639012,1736004255886,250.0,9.762e-05,2]
[347639017,1736004358856,209.97,9.74e-05,2]
[347639019,1736004409143,-270.58893915,9.84e-05,2]
[347639025,1736004577615,461.9,9.725e-05,2]
[347639060,1736004631749,-301.6,9.84e-05,2]
[347639061,1736004631887,-1309.69106085,9.84e-05,2]
[347639062,1736004631897,-2579.1322,9.9e-05,2]
[347639063,1736004631907,-1005.0,9.9e-05,2]
[347639064,1736004631917,-254.32013442,9.934e-05,2]
[347639065,1736004631926,-254.32013442,9.969e-05,2]
[347639066,1736004631936,-2416.0,9.973e-05,2]
[347639067,1736004631945,-500.0,9.973e-05,2]
[347639068,1736004631955,-500.0,9.973e-05,2]
[347639069,1736004631965,-498.6986,9.973e-05,2]
[347639070,1736004631974,-500.98880062,9.973e-05,2]
[347639071,1736004631984,-203.01389515,9.973e-05,2]
[347639072,1736004631994,-2219.9924074,9.997e-05,2]
[347639073,1736004632004,-536.1022766,9.997e-05,2]
[347639074,1736004632014,-2702.8418818,9.999e-05,2]
[347639075,1736004632026,-2186.31036139,9.999e-05,2]
[347639076,1736004632036,-500.0,9.999e-05,2]
[347639077,1736004632047,-500.0,9.999e-05,2]
[347639078,1736004632058,-500.0,9.999e-05,2]
[347639079,1736004632071,-500.0,9.999e-05,2]
[347639080,1736004632081,-300.90270858,9.999e-05,2]
[347639081,1736004632093,-744.85,9.999e-05,2]
[347639082,1736004632104,-500.0,9.999e-05,2]
[347639083,1736004632114,-500.0,9.999e-05,2]
[347639084,1736004632128,-500.0,9.999e-05,2]
[347639085,1736004632141,-500.0,9.999e-05,2]
[347639086,1736004632153,-500.0,9.999e-05,2]
[347639087,1736004632163,-500.0,9.999e-05,2]
[347639088,1736004632173,-413.1,9.999e-05,2]
[347639089,1736004632183,-500.0,9.999e-05,2]
[347639090,1736004632194,-541.69,9.999e-05,2]
[347639092,1736004632204,-500.0,9.999e-05,2]
[347639094,1736004632214,-500.0,9.999e-05,2]
[347639096,1736004632224,-500.0,9.999e-05,2]
[347639098,1736004632234,-500.0,9.999e-05,2]
[347639100,1736004632244,-500.0,9.999e-05,2]
[347639102,1736004632254,-500.0,9.999e-05,2]
[347639104,1736004632264,-500.0,9.999e-05,2]
[347639106,1736004632274,-500.0,9.999e-05,2]
[347639108,1736004632283,-500.0,9.999e-05,2]
[347639110,1736004632294,-500.0,9.999e-05,2]
[347639112,1736004632303,-500.0,9.999e-05,2]
[347639114,1736004632312,-500.0,9.999e-05,2]
[347639116,1736004632322,-500.0,9.999e-05,2]
[347639118,1736004632331,-866.38,9.999e-05,2]
[347639120,1736004632340,-192.16,9.999e-05,2]
[347639122,1736004632349,-614.83,9.999e-05,2]
[347639124,1736004632358,-500.0,9.999e-05,2]
[347639126,1736004632368,-500.0,9.999e-05,2]
[347639128,1736004632383,-500.0,9.999e-05,2]
[347639130,1736004632393,-500.0,9.999e-05,2]
[347639132,1736004632402,-500.0,9.999e-05,2]
[347639134,1736004632411,-703.42,9.999e-05,2]
[347639136,1736004632420,-500.0,9.999e-05,2]
[347639138,1736004632430,-500.84,9.999e-05,2]
[347639140,1736004632439,-500.0,9.999e-05,2]
[347639142,1736004632449,-501.0,0.0001,2]
[347639144,1736004632458,-15523.47957087,0.0001,2]
[347639146,1736004632471,-41146.53556079,0.0001,2]
[347639149,1736004632488,-1460.139699,0.0001,2]
[347639152,1736004632499,-79200.00003094,0.0001,2]
[347639154,1736004632510,-38758.37734712,0.0001,2]
[347639156,1736004632523,-238876.71056744,0.0001,2]
[347639158,1736004632534,-807.70277775,0.0001,2]
[347639162,1736004632558,-457.32324151,0.0001,2]
[347639164,1736004632570,-5672.484,0.0001,2]
[347639167,1736004632589,-49485.21391681,0.0001,2]
[347639169,1736004632601,-23477.56739431,0.0001,2]
[347639171,1736004632612,-266915.36856045,0.0001,2]
[347639175,1736004632643,-1525.15327041,0.0001,2]
[347639177,1736004632657,-6347.521058,0.0001,2]
[347639179,1736004632670,-25696.34198728,0.0001,2]
[347639182,1736004632682,-2944.83,0.0001,2]
[347639185,1736004632708,-614.72573488,0.0001,2]
[347639461,1736004637719,-501.0,0.0001,2]
[347639462,1736004637730,-7270.62024578,0.0001,2]
[347639463,1736004637764,-4999.9999995,0.0001,2]
[347639464,1736004637807,-1771.28400005,0.0001,2]
[347639465,1736004637819,-24654.61407904,0.0001,2]
[347639466,1736004637879,-1991.92206004,0.0001,2]
[347639467,1736004637984,-3799.93045815,0.0001,2]
[347639468,1736004637996,-3123.54115014,0.0001,2]
[347639469,1736004638007,-132622.65367001,0.0001,2]
[347639470,1736004638019,-10367.15099535,0.0001,2]
[347639471,1736004638030,-2682.394968,0.0001,2]
[347639472,1736004638042,-943.616,0.0001,2]
[347639474,1736004638053,-31237.260537,0.0001,2]
[347639624,1736004639878,-6502.5588071,0.0001,2]
[347639627,1736004639891,-15420.54971,0.0001,2]
[347639629,1736004639903,-5729.912246,0.0001,2]
[347639631,1736004639914,-2370.58391407,0.0001,2]
[347639633,1736004639927,-2011.68155502,0.0001,2]
[347639636,1736004639939,-863.13500002,0.0001,2]
[347639653,1736004640101,-509.71667059,0.0001,2]
[347639655,1736004640112,-384.644286,0.0001,2]
[347639657,1736004640123,-2793.02318066,0.0001,2]
[347639660,1736004640139,-548.00952576,0.0001,2]
[347639662,1736004640156,-862.3159344,0.0001,2]
[347639664,1736004640167,-982.45049282,0.0001,2]
[347639667,1736004640189,-328.05823,0.0001,2]
[347639704,1736004640730,-4173.47560101,0.0001,2]
[347639705,1736004640742,-27632.97700115,0.0001,2]
[347639707,1736004640754,-1027.43750262,0.0001,2]
[347639709,1736004640765,-1363.68834929,0.0001,2]
[347639712,1736004640780,-674.7238317,0.0001,2]
[347639715,1736004640800,-518.424,0.0001,2]
[347639717,1736004640812,-234235.15262501,0.0001,2]
[347639719,1736004640823,-469.2431288,0.0001,2]
[347639722,1736004640835,-342.24669972,0.0001,2]
[347639724,1736004640846,-390.7425741,0.0001,2]
[347639726,1736004640858,-2646.33936361,0.0001,2]
[347639728,1736004640869,-23862.09118534,0.0001,2]
[347639730,1736004640883,-6535.06181227,0.0001,2]
[347639733,1736004640895,-2034.52399846,0.0001,2]
[347639735,1736004640907,-480.005,0.0001,2]
[347639737,1736004640918,-283.62,0.0001,2]
[347639739,1736004640930,-1772.84939215,0.0001,2]
[347639742,1736004640942,-297.04429955,0.0001,2]
[347639744,1736004640954,-35954.6541756,0.0001,2]
[347639746,1736004640966,-3928.75584,0.0001,2]
[347639748,1736004640978,-18706.07315685,0.0001,2]
[347639750,1736004640990,-448.12608553,0.0001,2]
[347639752,1736004641001,-257669.98487958,0.0001,2]
[347639753,1736004641013,-75159.53447529,0.0001,2]
[347639754,1736004641025,-25820.6240994,0.0001,2]
[347639755,1736004641037,-114765.9934315,0.0001,2]
[347639756,1736004641048,-329432.77300608,0.0001,2]
[347639757,1736004641060,-114807.56950521,0.0001,2]
[347639758,1736004641072,-277.209,0.0001,2]
[347639759,1736004641087,-340.39927,0.0001,2]
[347639760,1736004641097,-417.76166719,0.0001,2]
[347639762,1736004641110,-301.92197159,0.0001,2]
[347639764,1736004641121,-10620861.1585705,0.0001,2]
[347639767,1736004641140,-17754.94105895,0.0001,2]
[347639840,1736004642731,-4422.2573921,0.0001,2]
[347639843,1736004642742,-2417.74338737,0.0001,2]
[347639849,1736004642768,-3932.74721704,0.0001,2]
[347639851,1736004642780,-810.08527622,0.0001,2]
[347639854,1736004642792,-14159.49802454,0.0001,2]
[347639856,1736004642808,-1341.47799,0.0001,2]
[347639858,1736004642819,-434.67999985,0.0001,2]
[347639860,1736004642831,-4260.09096714,0.0001,2]
[347639863,1736004642846,-40347.95024,0.0001,2]
[347639865,1736004642858,-13636.89355177,0.0001,2]
[347639867,1736004642973,-2033.70692799,0.0001,2]
[347639868,1736004642986,-5448.54425,0.0001,2]
[347639869,1736004642998,-3065.14969328,0.0001,2]
[347639870,1736004643010,-22322.03929,0.0001,2]
[347639871,1736004643023,-1092.13677785,0.0001,2]
[347639872,1736004643034,-730.07140233,0.0001,2]
[347639873,1736004643046,-652.62529538,0.0001,2]
[347639874,1736004643058,-965.40928741,0.0001,2]
[347639875,1736004643096,-30.06543763,0.0001,2]
[347639876,1736004643109,-616.40024748,0.0001,2]
[347639878,1736004643120,-565.96035156,0.0001,2]
[347639880,1736004643135,-465.465853,0.0001,2]
[347639882,1736004643147,-4717.6,0.0001,2]
[347639885,1736004643163,-1164.90682513,0.0001,2]
[347639887,1736004643174,-9653.80000013,0.0001,2]
[347639889,1736004643186,-5033.13889918,0.0001,2]
[347639892,1736004643198,-833.87987711,0.0001,2]
[347639895,1736004643216,-4245.22314852,0.0001,2]
[347640137,1736004645673,-3876.25222147,0.0001,2]
[347640140,1736004645685,-42217.3649194,0.0001,2]
[347640142,1736004645695,-830.71967019,0.0001,2]
[347640145,1736004645712,-777.741585,0.0001,2]
[347640147,1736004645724,-3759.5482,0.0001,2]
[347640149,1736004645736,-416.20683773,0.0001,2]
[347640151,1736004645747,-479247.86312539,0.0001,2]
[347640154,1736004645759,-538.70369134,0.0001,2]
[347640156,1736004645770,-1149.50829646,0.0001,2]
[347640158,1736004645782,-470.0,0.0001,2]
[347640160,1736004645793,-90943.37067011,0.0001,2]
[347640162,1736004645804,-4918.6677,0.0001,2]
[347640165,1736004645816,-43153.78343159,0.0001,2]
[347640167,1736004645827,-488.44003911,0.0001,2]
[347640169,1736004645839,-30451.53233222,0.0001,2]
[347640172,1736004645852,-8195.25901937,0.0001,2]
[347640174,1736004645864,-39727.51292869,0.0001,2]
[347640176,1736004645876,-25570.70545284,0.0001,2]
[347640178,1736004645894,-190217.33815057,0.0001,2]
[347640180,1736004645905,-36985.99698623,0.0001,2]
[347640183,1736004645921,-3822.48,0.0001,2]
[347640185,1736004645932,-9379.03312447,0.0001,2]
[347640187,1736004645944,-16038.61259228,0.0001,2]
[347640191,1736004645967,-1411.3,0.0001,2]
[347640193,1736004645978,-8736.58807771,0.0001,2]
[347640195,1736004645990,-1833.0295476,0.0001,2]
[347640198,1736004646007,-1113.70970627,0.0001,2]
[347640200,1736004646018,-6576.06436248,0.0001,2]
[347640202,1736004646030,-1009.0940635,0.0001,2]
[347640204,1736004646042,-486.380165,0.0001,2]
[347640207,1736004646057,-418.18435819,0.0001,2]
[347640209,1736004646072,-1510.0603134,0.0001,2]
[347640213,1736004646095,-500.0,9.999e-05,2]
[347640215,1736004646105,-251139.09518473,0.0001,2]
[347640217,1736004646117,-28152.95384154,0.0001,2]
[347640219,1736004646128,-918.0,0.0001,2]
[347640222,1736004646146,-1839.99999992,0.0001,2]
[347641018,1736004818494,679.02,9.5e-05,2]
[347641019,1736004853311,1000.0,9.726e-05,2]
[347641020,1736004949141,526.71,8.219e-05,2]
[347641021,1736005076129,273.49484056,9.8e-05,2]
[347641023,1736005520339,-150.0,8.803e-05,2]
[347641024,1736005520363,-150.0,8.803e-05,2]
[347641025,1736005520388,-150.0,8.803e-05,2]
[347641026,1736005520415,-178.98,8.966e-05,2]
[347641027,1736005520439,-164.11,8.986e-05,2]
[347641028,1736005520461,-250.0,9.136e-05,2]
[347641029,1736005520483,-330.58636792,9.421e-05,2]
[347641030,1736005520511,-656.983,9.5e-05,2]
[347641031,1736005520535,-300.0,9.508e-05,2]
[347641032,1736005520557,-3624.34063208,9.509e-05,2]
[347641033,1736005524630,-10000.0,9.509e-05,2]
[347641034,1736005528625,-9506.65936792,9.509e-05,2]
[347641035,1736005528647,-493.34063208,9.509e-05,2]
[347641036,1736005533797,-449.27133938,9.509e-05,2]
[347641037,1736005533822,-1443.283,9.604e-05,2]
[347641038,1736005533847,-164.784,9.604e-05,2]
[347641039,1736005533870,-2500.0,9.673e-05,2]
[347641040,1736005533894,-5000.0,9.7e-05,2]
[347641041,1736005547113,-442.66166062,9.772e-05,2]
[347641042,1736005554807,-57.33833938,9.772e-05,2]
[347641043,1736005554830,-500.0,9.772e-05,2]
[347641044,1736005554853,-500.0,9.772e-05,2]
[347641045,1736005554876,-500.0,9.772e-05,2]
[347641046,1736005554899,-580.64249359,9.772e-05,2]
[347641047,1736005554922,-500.0,9.772e-05,2]
[347641048,1736005554945,-500.0,9.772e-05,2]
[347641049,1736005554967,-500.0,9.772e-05,2]
[347641050,1736005554988,-500.0,9.772e-05,2]
[347641051,1736005555010,-500.0,9.772e-05,2]
[347641052,1736005555032,-500.0,9.772e-05,2]
[347641053,1736005555054,-500.0,9.772e-05,2]
[347641054,1736005555076,-500.0,9.772e-05,2]
[347641055,1736005555097,-500.0,9.772e-05,2]
[347641056,1736005555120,-500.0,9.772e-05,2]
[347641057,1736005555141,-500.0,9.772e-05,2]
[347641058,1736005555163,-500.0,9.772e-05,2]
[347641059,1736005555185,-500.0,9.772e-05,2]
[347641060,1736005555207,-500.0,9.772e-05,2]
[347641061,1736005555228,-500.0,9.772e-05,2]
[347641062,1736005555250,-362.01916703,9.772e-05,2]
[347641063,1736005558984,-137.98083297,9.772e-05,2]
[347641064,1736005559006,-500.0,9.772e-05,2]
[347641065,1736005559027,-500.0,9.772e-05,2]
[347641066,1736005559049,-500.0,9.772e-05,2]
[347641067,1736005559071,-500.0,9.772e-05,2]
[347641068,1736005559358,-500.0,9.772e-05,2]
[347641069,1736005559381,-390.28,9.772e-05,2]
[347641070,1736005559406,-500.0,9.772e-05,2]
[347641071,1736005559429,-328.19,9.772e-05,2]
[347641072,1736005559451,-500.0,9.772e-05,2]
[347641073,1736005559473,-5643.54916703,9.773e-05,2]
[347641074,1736005563147,-10000.0,9.773e-05,2]
[347641075,1736005567492,-10000.0,9.773e-05,2]
[347641076,1736005571652,-10000.0,9.773e-05,2]
[347641077,1736005575877,-10000.0,9.773e-05,2]
[347641078,1736005582171,-567.99097114,9.772e-05,2]
[347641079,1736005582195,-9432.00902886,9.773e-05,2]
[347641080,1736005586235,-500.0,9.772e-05,2]
[347641081,1736005586257,-9500.0,9.773e-05,2]
[347641082,1736005590210,-10000.0,9.773e-05,2]
[347641083,1736005594133,-2222.0,9.605e-05,2]
[347641084,1736005594155,-7778.0,9.773e-05,2]
[347641085,1736005599450,-500.0,9.772e-05,2]
[347641086,1736005599473,-500.0,9.772e-05,2]
[347641087,1736005599494,-9000.0,9.773e-05,2]
[347641088,1736005602912,-9503.83,9.673e-05,2]
[347641089,1736005602936,-496.17,9.773e-05,2]
[347641090,1736005606693,-10000.0,9.773e-05,2]
[347641091,1736005610688,-10000.0,9.773e-05,2]
[347641095,1736005614789,-10000.0,9.773e-05,2]
[347641096,1736005618699,-500.0,9.772e-05,2]
[347641097,1736005618722,-9500.0,9.773e-05,2]
[347641098,1736005623632,-492.9145,9.673e-05,2]
[347641099,1736005623656,-300.0,9.772e-05,2]
[347641100,1736005623679,-9207.0855,9.773e-05,2]
[347641101,1736005630679,-500.0,9.772e-05,2]
[347641102,1736005630701,-9500.0,9.773e-05,2]
[347641103,1736005638610,-500.0,9.772e-05,2]
[347641104,1736005638632,-9500.0,9.773e-05,2]
[347641105,1736005642059,-500.0,9.772e-05,2]
[347641106,1736005642082,-500.0,9.772e-05,2]
[347641107,1736005642104,-9000.0,9.773e-05,2]
[347641108,1736005645644,-10000.0,9.773e-05,2]
[347641109,1736005649442,-10000.0,9.773e-05,2]
[347641110,1736005653313,-10000.0,9.773e-05,2]
[347641111,1736005659667,-500.0,9.772e-05,2]
[347641112,1736005659694,-9500.0,9.773e-05,2]
[347641113,1736005662894,-10000.0,9.773e-05,2]